[Event "Live Chess"]
[Site "Chess.com"]
[Date "2023.05.20"]
[Round "-"]
[White "LiamClery2020"]
[Black "mattlirious"]
[Result "1/2-1/2"]
[WhiteElo "2090"]
[BlackElo "1325"]
[TimeControl "300"]
[EndTime "11:45:43 PDT"]
[Termination "Game drawn - timeout vs insufficient material"]

1. e4 {[%clk 0:04:58.3]} 1... c6 {[%clk 0:04:58.5]} 2. c4 {[%clk 0:04:57.2]}
2... d5 {[%clk 0:04:54.8]} 3. cxd5 {[%clk 0:04:56.4]} 3... cxd5 {[%clk
0:04:52.4]} 4. exd5 {[%clk 0:04:56.3]} 4... Qxd5 {[%clk 0:04:45.6]} 5. Nc3
{[%clk 0:04:55.5]} 5... Qd8 {[%clk 0:04:43.8]} 6. d4 {[%clk 0:04:53.1]} 6... Nf6
{[%clk 0:04:42.5]} 7. Bc4 {[%clk 0:04:50.8]} 7... b6 {[%clk 0:04:35.8]} 8. Nf3
{[%clk 0:04:48.5]} 8... Bb7 {[%clk 0:04:34.8]} 9. Ne5 {[%clk 0:04:45.9]} 9... e6
{[%clk 0:04:17.8]} 10. Bb5+ {[%clk 0:04:43.8]} 10... Nbd7 {[%clk 0:04:15]} 11.
Qa4 {[%clk 0:04:41.8]} 11... Bc8 {[%clk 0:03:51.2]} 12. Bg5 {[%clk 0:04:40]}
12... Be7 {[%clk 0:03:44]} 13. Bxf6 {[%clk 0:04:37.7]} 13... gxf6 {[%clk
0:03:42.6]} 14. Nxd7 {[%clk 0:04:36.3]} 14... Bxd7 {[%clk 0:03:39.8]} 15. Bc6
{[%clk 0:04:35.3]} 15... Rc8 {[%clk 0:03:32.2]} 16. Bxd7+ {[%clk 0:04:33.5]}
16... Qxd7 {[%clk 0:03:30.1]} 17. Qxd7+ {[%clk 0:04:31]} 17... Kxd7 {[%clk
0:03:28.8]} 18. O-O {[%clk 0:04:29.8]} 18... Rhg8 {[%clk 0:03:26.9]} 19. Rac1
{[%clk 0:04:24.8]} 19... Bd6 {[%clk 0:03:25.7]} 20. g3 {[%clk 0:04:23.1]} 20...
h5 {[%clk 0:03:24.6]} 21. Ne4 {[%clk 0:04:22.4]} 21... Rxc1 {[%clk 0:03:04.8]}
22. Nxf6+ {[%clk 0:04:20.7]} 22... Kd8 {[%clk 0:02:55.2]} 23. Rxc1 {[%clk
0:04:18.8]} 23... Rg6 {[%clk 0:02:49.2]} 24. Ne4 {[%clk 0:04:16.5]} 24... Be7
{[%clk 0:02:45.5]} 25. Kf1 {[%clk 0:04:13]} 25... h4 {[%clk 0:02:43.9]} 26. Ke2
{[%clk 0:04:11.4]} 26... hxg3 {[%clk 0:02:42.6]} 27. fxg3 {[%clk 0:04:10.6]}
27... Rg4 {[%clk 0:02:38.8]} 28. Kf3 {[%clk 0:04:08.9]} 28... f5 {[%clk
0:02:36.8]} 29. Nc3 {[%clk 0:04:00]} 29... Rxd4 {[%clk 0:02:30.5]} 30. Re1
{[%clk 0:03:59]} 30... Kd7 {[%clk 0:02:08.5]} 31. h4 {[%clk 0:03:56.2]} 31...
Rd3+ {[%clk 0:02:03.8]} 32. Re3 {[%clk 0:03:49.7]} 32... Rxe3+ {[%clk
0:01:56.5]} 33. Kxe3 {[%clk 0:03:49.6]} 33... a6 {[%clk 0:01:54.1]} 34. Ne2
{[%clk 0:03:38.5]} 34... e5 {[%clk 0:01:53.1]} 35. Nc3 {[%clk 0:03:29.7]} 35...
f4+ {[%clk 0:01:50.9]} 36. gxf4 {[%clk 0:03:25.1]} 36... exf4+ {[%clk 0:01:50]}
37. Kxf4 {[%clk 0:03:24.1]} 37... Bxh4 {[%clk 0:01:49.5]} 38. Nd5 {[%clk
0:03:21]} 38... Bd8 {[%clk 0:01:44.7]} 39. Ke4 {[%clk 0:03:19.9]} 39... Kd6
{[%clk 0:01:41.8]} 40. Kd4 {[%clk 0:03:18.4]} 40... b5 {[%clk 0:01:37]} 41. b3
{[%clk 0:03:14.1]} 41... a5 {[%clk 0:01:34.6]} 42. a3 {[%clk 0:03:09.7]} 42...
Kc6 {[%clk 0:01:26.1]} 43. b4 {[%clk 0:03:04.3]} 43... a4 {[%clk 0:00:52.7]} 44.
Ke4 {[%clk 0:03:01]} 44... Bg5 {[%clk 0:00:50.2]} 45. Kd4 {[%clk 0:02:51.8]}
45... Bc1 {[%clk 0:00:44.1]} 46. Ne7+ {[%clk 0:02:49.3]} 46... Kb6 {[%clk
0:00:38.7]} 47. Nd5+ {[%clk 0:02:47.4]} 47... Kc6 {[%clk 0:00:30.6]} 48. Ne7+
{[%clk 0:02:45.3]} 48... Kb7 {[%clk 0:00:28]} 49. Nd5 {[%clk 0:02:36.3]} 49...
Bxa3 {[%clk 0:00:18.8]} 50. Kc3 {[%clk 0:02:34.8]} 50... Bc1 {[%clk 0:00:17]}
51. Kc2 {[%clk 0:02:32.5]} 51... Bh6 {[%clk 0:00:14.8]} 52. Kb2 {[%clk
0:02:28.3]} 52... Bf8 {[%clk 0:00:14.2]} 53. Ka3 {[%clk 0:02:26.7]} 53... Kc6
{[%clk 0:00:13.6]} 54. Ne3 {[%clk 0:02:24.3]} 54... Kd7 {[%clk 0:00:10.2]} 55.
Nd5 {[%clk 0:02:21.1]} 55... Kc6 {[%clk 0:00:07.9]} 56. Nf6 {[%clk 0:02:19.8]}
56... Bxb4+ {[%clk 0:00:06.8]} 57. Kxb4 {[%clk 0:02:18.4]} 57... Kb6 {[%clk
0:00:06.7]} 58. Nd5+ {[%clk 0:02:17.6]} 58... Kc6 {[%clk 0:00:05.3]} 59. Nc3
{[%clk 0:02:17.5]} 59... Kb6 {[%clk 0:00:04.6]} 60. Na2 {[%clk 0:02:16.8]} 60...
a3 {[%clk 0:00:03.3]} 61. Nc1 {[%clk 0:02:16.7]} 61... Ka6 {[%clk 0:00:01.4]}
62. Kxa3 {[%clk 0:02:16.6]} 62... Ka5 {[%clk 0:00:00.4]} 63. Kb3 {[%clk
0:02:15.7]} 63... b4 {[%clk 0:00:00.2]} 64. Na2 {[%clk 0:02:14.9]} 64... Kb5
{[%clk 0:00:00.1]} 65. Nc1 {[%clk 0:02:14.1]} 1/2-1/2

[Event "Live Chess"]
[Site "Chess.com"]
[Date "2023.05.20"]
[Round "-"]
[White "boilerboy1"]
[Black "ranvir123"]
[Result "0-1"]
[WhiteElo "1064"]
[BlackElo "914"]
[TimeControl "300"]
[EndTime "11:45:45 PDT"]
[Termination "ranvir123 won on time"]

1. e4 {[%clk 0:04:54.9]} 1... e5 {[%clk 0:04:58]} 2. Nc3 {[%clk 0:04:52.2]} 2...
Nc6 {[%clk 0:04:55.2]} 3. Nf3 {[%clk 0:04:50.5]} 3... Nf6 {[%clk 0:04:53.2]} 4.
Be2 {[%clk 0:04:48.6]} 4... d5 {[%clk 0:04:52.5]} 5. exd5 {[%clk 0:04:46.4]}
5... Nxd5 {[%clk 0:04:51.6]} 6. Nxd5 {[%clk 0:04:45.1]} 6... Qxd5 {[%clk
0:04:50.2]} 7. O-O {[%clk 0:04:44.5]} 7... Bg4 {[%clk 0:04:45.2]} 8. Re1 {[%clk
0:04:42.1]} 8... O-O-O {[%clk 0:04:42.6]} 9. d3 {[%clk 0:04:37.8]} 9... Nd4
{[%clk 0:04:38.7]} 10. Nxd4 {[%clk 0:04:33.1]} 10... Bxe2 {[%clk 0:04:31.8]} 11.
Nxe2 {[%clk 0:04:30.7]} 11... e4 {[%clk 0:04:29.4]} 12. Ng3 {[%clk 0:04:26.2]}
12... exd3 {[%clk 0:04:26.4]} 13. Qg4+ {[%clk 0:04:21.5]} 13... Qd7 {[%clk
0:04:19.8]} 14. Qxd7+ {[%clk 0:04:17.9]} 14... Rxd7 {[%clk 0:04:18.2]} 15. cxd3
{[%clk 0:04:16.5]} 15... Bd6 {[%clk 0:04:15.6]} 16. d4 {[%clk 0:04:09.9]} 16...
Bxg3 {[%clk 0:04:13.4]} 17. hxg3 {[%clk 0:04:07.5]} 17... Rxd4 {[%clk
0:04:12.4]} 18. Be3 {[%clk 0:04:05.1]} 18... Re4 {[%clk 0:04:10]} 19. Bxa7
{[%clk 0:04:00.4]} 19... Rxe1+ {[%clk 0:04:06.9]} 20. Rxe1 {[%clk 0:03:58.2]}
20... Rd8 {[%clk 0:04:06.1]} 21. Bc5 {[%clk 0:03:51.3]} 21... Rd2 {[%clk
0:04:04.5]} 22. b4 {[%clk 0:03:48.9]} 22... Rxa2 {[%clk 0:04:03.1]} 23. Re8+
{[%clk 0:03:45.9]} 23... Kd7 {[%clk 0:04:01.6]} 24. Re7+ {[%clk 0:03:44.3]}
24... Kc6 {[%clk 0:04:00.5]} 25. Rxf7 {[%clk 0:03:42.2]} 25... Ra4 {[%clk
0:03:57.6]} 26. Rxg7 {[%clk 0:03:40.5]} 26... b6 {[%clk 0:03:55.2]} 27. Be3
{[%clk 0:03:35.2]} 27... Rxb4 {[%clk 0:03:53.6]} 28. Rxh7 {[%clk 0:03:33.7]}
28... Rb1+ {[%clk 0:03:52.3]} 29. Kh2 {[%clk 0:03:29]} 29... b5 {[%clk
0:03:51.6]} 30. Bf4 {[%clk 0:03:05.4]} 30... b4 {[%clk 0:03:35.5]} 31. Rxc7+
{[%clk 0:03:03.2]} 31... Kd5 {[%clk 0:03:26.9]} 32. Rd7+ {[%clk 0:02:51.1]}
32... Ke4 {[%clk 0:03:25.4]} 33. Be3 {[%clk 0:02:46.8]} 33... b3 {[%clk
0:03:24.1]} 34. Rd4+ {[%clk 0:02:43.1]} 34... Ke5 {[%clk 0:03:22.5]} 35. g4
{[%clk 0:02:35.5]} 35... b2 {[%clk 0:03:19.8]} 36. g5 {[%clk 0:02:31.7]} 36...
Rh1+ {[%clk 0:03:17.7]} 37. Kxh1 {[%clk 0:02:22.1]} 37... b1=Q+ {[%clk
0:03:04.6]} 38. Kh2 {[%clk 0:02:19.4]} 38... Qh7+ {[%clk 0:03:01.9]} 39. Kg3
{[%clk 0:02:12.8]} 39... Qg6 {[%clk 0:02:53.5]} 40. Ra4 {[%clk 0:02:03.7]} 40...
Kf5 {[%clk 0:02:46.3]} 41. Ra5+ {[%clk 0:02:01.2]} 41... Ke4 {[%clk 0:02:44.6]}
42. Ra4+ {[%clk 0:01:53.2]} 42... Ke5 {[%clk 0:02:40.9]} 43. f4+ {[%clk
0:01:48.3]} 43... Kf5 {[%clk 0:02:39.3]} 44. Ra5+ {[%clk 0:01:37.4]} 44... Ke4
{[%clk 0:02:37.7]} 45. Bf2 {[%clk 0:01:35.1]} 45... Qd6 {[%clk 0:02:23.4]} 46.
Re5+ {[%clk 0:01:31.2]} 46... Kd3 {[%clk 0:02:18.1]} 47. Rf5 {[%clk 0:01:19.2]}
47... Qa3 {[%clk 0:02:10.3]} 48. Re5 {[%clk 0:01:10.3]} 48... Kd2+ {[%clk
0:02:04.4]} 49. Re3 {[%clk 0:01:05.7]} 49... Qa8 {[%clk 0:01:53.1]} 50. g6
{[%clk 0:01:01.9]} 50... Qg8 {[%clk 0:01:51]} 51. f5 {[%clk 0:00:56.1]} 51...
Qf8 {[%clk 0:01:44]} 52. Rf3 {[%clk 0:00:52.3]} 52... Ke2 {[%clk 0:01:42.4]} 53.
Rf4 {[%clk 0:00:46.2]} 53... Qd6 {[%clk 0:01:40.3]} 54. g7 {[%clk 0:00:38.5]}
54... Qd8 {[%clk 0:01:33.8]} 55. f6 {[%clk 0:00:31.3]} 55... Qb8 {[%clk
0:01:31.5]} 56. f7 {[%clk 0:00:27.5]} 56... Qb3+ {[%clk 0:01:24.6]} 57. Rf3
{[%clk 0:00:22.1]} 57... Qb8+ {[%clk 0:01:20.8]} 58. Rf4 {[%clk 0:00:14.2]}
58... Qb3+ {[%clk 0:01:19]} 0-1

[Event "Live Chess"]
[Site "Chess.com"]
[Date "2023.05.20"]
[Round "-"]
[White "Vladyslav2008"]
[Black "siddu198"]
[Result "1-0"]
[WhiteElo "2164"]
[BlackElo "1625"]
[TimeControl "300"]
[EndTime "11:45:45 PDT"]
[Termination "Vladyslav2008 won by resignation"]

1. e4 {[%clk 0:04:52.7]} 1... g6 {[%clk 0:04:59.9]} 2. h4 {[%clk 0:04:50.9]}
2... e5 {[%clk 0:04:58.9]} 3. h5 {[%clk 0:04:50.1]} 3... d6 {[%clk 0:04:54.2]}
4. d4 {[%clk 0:04:48.6]} 4... exd4 {[%clk 0:04:52.2]} 5. Qxd4 {[%clk 0:04:46.1]}
5... Qf6 {[%clk 0:04:51.6]} 6. Be3 {[%clk 0:04:43.6]} 6... Nc6 {[%clk
0:04:46.6]} 7. Qxf6 {[%clk 0:04:42.4]} 7... Nxf6 {[%clk 0:04:46.1]} 8. hxg6
{[%clk 0:04:41.2]} 8... fxg6 {[%clk 0:04:44.6]} 9. Nc3 {[%clk 0:04:40.9]} 9...
Bg7 {[%clk 0:04:42.3]} 10. O-O-O {[%clk 0:04:39.6]} 10... Bg4 {[%clk 0:04:39.8]}
11. f3 {[%clk 0:04:37.4]} 11... Bd7 {[%clk 0:04:38.7]} 12. Kb1 {[%clk
0:04:34.4]} 12... O-O-O {[%clk 0:04:38]} 13. Nge2 {[%clk 0:04:32.4]} 13... a6
{[%clk 0:04:37.1]} 14. Nc1 {[%clk 0:04:30]} 14... Ne5 {[%clk 0:04:36.2]} 15. Nb3
{[%clk 0:04:23.5]} 15... Be6 {[%clk 0:04:32.2]} 16. Nd5 {[%clk 0:04:18.9]} 16...
Bxd5 {[%clk 0:04:29.8]} 17. exd5 {[%clk 0:04:17.9]} 17... Ned7 {[%clk
0:04:23.1]} 18. c4 {[%clk 0:04:11.4]} 18... Rde8 {[%clk 0:04:17.6]} 19. Bf2
{[%clk 0:04:08.3]} 19... Ne5 {[%clk 0:04:12.6]} 20. c5 {[%clk 0:04:03.6]} 20...
dxc5 {[%clk 0:04:05.3]} 21. Nxc5 {[%clk 0:04:01.5]} 21... Ned7 {[%clk 0:04:03]}
22. Nb3 {[%clk 0:03:52.6]} 22... Nb6 {[%clk 0:03:54.3]} 23. d6 {[%clk
0:03:50.6]} 23... Nfd7 {[%clk 0:03:44.5]} 24. dxc7 {[%clk 0:03:44]} 24... Kxc7
{[%clk 0:03:43.5]} 25. Bd3 {[%clk 0:03:36.2]} 25... Na4 {[%clk 0:03:36.2]} 26.
Bg3+ {[%clk 0:03:31.2]} 26... Kd8 {[%clk 0:03:27.5]} 27. Rd2 {[%clk 0:03:26.4]}
27... Re7 {[%clk 0:03:01.4]} 28. Rhd1 {[%clk 0:03:22.2]} 28... Ke8 {[%clk
0:02:48.6]} 29. Bh4 {[%clk 0:03:17.4]} 29... Bf6 {[%clk 0:02:38.5]} 30. Bxf6
{[%clk 0:03:14.4]} 30... Nxf6 {[%clk 0:02:38.4]} 31. Bb5+ {[%clk 0:03:12.7]}
31... axb5 {[%clk 0:02:33.9]} 32. Rd8+ {[%clk 0:03:11.4]} 32... Kf7 {[%clk
0:02:30.4]} 33. Rxh8 {[%clk 0:03:11.1]} 33... Nb6 {[%clk 0:02:14.7]} 34. Nd4
{[%clk 0:02:57.3]} 34... Rd7 {[%clk 0:02:04.2]} 35. Rb8 {[%clk 0:02:53.6]} 35...
Nc4 {[%clk 0:01:49.8]} 36. Kc1 {[%clk 0:02:47.7]} 36... Ne3 {[%clk 0:01:48]} 37.
Rd2 {[%clk 0:02:44.6]} 37... Nxg2 {[%clk 0:01:31.7]} 38. Rxg2 {[%clk 0:02:39.4]}
38... Rxd4 {[%clk 0:01:31.4]} 39. Rxb7+ {[%clk 0:02:38.9]} 39... Ke6 {[%clk
0:01:30.7]} 40. Rxb5 {[%clk 0:02:38.1]} 40... Nd5 {[%clk 0:01:27.1]} 41. Re2+
{[%clk 0:02:36]} 41... Kf5 {[%clk 0:01:25.9]} 42. Rd2 {[%clk 0:02:34.4]} 42...
Rc4+ {[%clk 0:01:23]} 43. Kd1 {[%clk 0:02:33.3]} 1-0

[Event "Live Chess"]
[Site "Chess.com"]
[Date "2023.05.20"]
[Round "-"]
[White "Ayursworld"]
[Black "seabuck"]
[Result "0-1"]
[WhiteElo "1343"]
[BlackElo "1857"]
[TimeControl "300"]
[EndTime "11:45:57 PDT"]
[Termination "seabuck won by resignation"]

1. e4 {[%clk 0:04:58.2]} 1... c6 {[%clk 0:04:58.9]} 2. Nf3 {[%clk 0:04:55.4]}
2... d5 {[%clk 0:04:57.6]} 3. exd5 {[%clk 0:04:53.5]} 3... cxd5 {[%clk
0:04:56.7]} 4. d4 {[%clk 0:04:51.7]} 4... Nc6 {[%clk 0:04:55.8]} 5. Bb5 {[%clk
0:04:49.9]} 5... Nf6 {[%clk 0:04:53.8]} 6. Bxc6+ {[%clk 0:04:48.4]} 6... bxc6
{[%clk 0:04:52.5]} 7. Nc3 {[%clk 0:04:47.4]} 7... e6 {[%clk 0:04:44.1]} 8. Bg5
{[%clk 0:04:46.9]} 8... h6 {[%clk 0:04:41.7]} 9. Bxf6 {[%clk 0:04:45.5]} 9...
Qxf6 {[%clk 0:04:38.4]} 10. O-O {[%clk 0:04:44.5]} 10... Bd6 {[%clk 0:04:35.2]}
11. h3 {[%clk 0:04:41.3]} 11... O-O {[%clk 0:04:29.2]} 12. Qd3 {[%clk
0:04:38.4]} 12... a5 {[%clk 0:04:22.9]} 13. Qd2 {[%clk 0:04:34]} 13... c5 {[%clk
0:04:17.9]} 14. dxc5 {[%clk 0:04:30]} 14... Bxc5 {[%clk 0:04:16.5]} 15. Rfe1
{[%clk 0:04:28]} 15... Bb7 {[%clk 0:04:04.9]} 16. Rab1 {[%clk 0:04:26.4]} 16...
Rac8 {[%clk 0:03:54.6]} 17. Nd1 {[%clk 0:04:22.3]} 17... d4 {[%clk 0:03:40.6]}
18. Qxa5 {[%clk 0:04:12.5]} 18... Bxf3 {[%clk 0:03:36.8]} 19. gxf3 {[%clk
0:04:11.5]} 19... Qxf3 {[%clk 0:03:33.5]} 20. c3 {[%clk 0:04:06.4]} 20... Qxh3
{[%clk 0:03:21]} 21. cxd4 {[%clk 0:04:04.3]} 21... Bxd4 {[%clk 0:03:16.6]} 22.
Qd2 {[%clk 0:04:00.7]} 22... Rfd8 {[%clk 0:03:04.5]} 23. Qb4 {[%clk 0:03:54.3]}
23... Qg4+ {[%clk 0:02:54.7]} 24. Kf1 {[%clk 0:03:51.1]} 24... Qh3+ {[%clk
0:02:46.2]} 25. Ke2 {[%clk 0:03:47.3]} 25... Rc2+ {[%clk 0:02:37.2]} 26. Qd2
{[%clk 0:03:41.2]} 26... Rxd2+ {[%clk 0:02:35.9]} 27. Kxd2 {[%clk 0:03:40.1]}
27... Bxf2+ {[%clk 0:02:33.1]} 28. Ke2 {[%clk 0:03:34.7]} 28... Bxe1 {[%clk
0:02:30.4]} 29. Kxe1 {[%clk 0:03:33.5]} 29... Qh1+ {[%clk 0:02:26.6]} 30. Ke2
{[%clk 0:03:32.7]} 30... f5 {[%clk 0:02:22.7]} 31. Nf2 {[%clk 0:03:29]} 31...
Qxb1 {[%clk 0:02:20.1]} 32. Kf3 {[%clk 0:03:23.2]} 0-1

[Event "Live Chess"]
[Site "Chess.com"]
[Date "2023.05.20"]
[Round "-"]
[White "ViktorTheCoolBoy"]
[Black "Chesscoach_Golichenko"]
[Result "0-1"]
[WhiteElo "2537"]
[BlackElo "2660"]
[TimeControl "300"]
[EndTime "11:46:00 PDT"]
[Termination "Chesscoach_Golichenko won by checkmate"]

1. d4 {[%clk 0:04:58.6]} 1... Nf6 {[%clk 0:04:54.3]} 2. c4 {[%clk 0:04:54.3]}
2... e6 {[%clk 0:04:51.4]} 3. g3 {[%clk 0:04:53.1]} 3... d5 {[%clk 0:04:49.3]}
4. Bg2 {[%clk 0:04:51.7]} 4... a6 {[%clk 0:04:47]} 5. Nf3 {[%clk 0:04:45.9]}
5... dxc4 {[%clk 0:04:34.3]} 6. O-O {[%clk 0:04:43.9]} 6... Nc6 {[%clk
0:04:32.4]} 7. e3 {[%clk 0:04:42.6]} 7... Rb8 {[%clk 0:04:28.8]} 8. Qe2 {[%clk
0:04:38.4]} 8... b5 {[%clk 0:04:27]} 9. b3 {[%clk 0:04:37.5]} 9... cxb3 {[%clk
0:04:24.6]} 10. axb3 {[%clk 0:04:37.4]} 10... Bb7 {[%clk 0:04:23.7]} 11. Nc3
{[%clk 0:04:34.2]} 11... Be7 {[%clk 0:04:21.8]} 12. Bb2 {[%clk 0:04:31.2]} 12...
O-O {[%clk 0:04:20.2]} 13. e4 {[%clk 0:04:29.6]} 13... Nxd4 {[%clk 0:04:04.8]}
14. Nxd4 {[%clk 0:04:27.2]} 14... Qxd4 {[%clk 0:04:04.7]} 15. Nd5 {[%clk
0:04:25.3]} 15... Qc5 {[%clk 0:03:51.9]} 16. b4 {[%clk 0:03:55.7]} 16... Qd6
{[%clk 0:03:42.9]} 17. e5 {[%clk 0:03:54.4]} 17... Qxd5 {[%clk 0:03:29.6]} 18.
Bxd5 {[%clk 0:03:53.3]} 18... Nxd5 {[%clk 0:03:29.2]} 19. Rfc1 {[%clk
0:03:51.6]} 19... Bxb4 {[%clk 0:03:25.2]} 20. Bd4 {[%clk 0:03:45]} 20... Rfc8
{[%clk 0:03:14.6]} 21. Bc5 {[%clk 0:03:42.1]} 21... Bc3 {[%clk 0:03:09.6]} 22.
Ra2 {[%clk 0:03:35.5]} 22... b4 {[%clk 0:03:00.5]} 23. h4 {[%clk 0:02:50.5]}
23... Ra8 {[%clk 0:02:46.3]} 24. Qc4 {[%clk 0:02:24]} 24... a5 {[%clk
0:02:41.7]} 25. Be3 {[%clk 0:02:18.6]} 25... c5 {[%clk 0:02:34.5]} 26. Bg5
{[%clk 0:02:11.9]} 26... h6 {[%clk 0:02:21.8]} 27. Bd2 {[%clk 0:02:08.5]} 27...
Ba6 {[%clk 0:02:14.2]} 28. Qg4 {[%clk 0:02:06.1]} 28... Bxd2 {[%clk 0:02:12.9]}
29. Rxd2 {[%clk 0:02:05.6]} 29... c4 {[%clk 0:02:11.8]} 30. Rxd5 {[%clk
0:01:50.5]} 30... exd5 {[%clk 0:02:07.2]} 31. e6 {[%clk 0:01:50.4]} 31... fxe6
{[%clk 0:01:44.3]} 32. Qxe6+ {[%clk 0:01:48.8]} 32... Kh8 {[%clk 0:01:43.9]} 33.
Qxd5 {[%clk 0:01:43.6]} 33... b3 {[%clk 0:01:39.4]} 34. Re1 {[%clk 0:01:34.1]}
34... b2 {[%clk 0:01:33]} 35. g4 {[%clk 0:01:14.6]} 35... Rab8 {[%clk
0:01:11.5]} 36. g5 {[%clk 0:01:09.9]} 36... b1=Q {[%clk 0:01:08.5]} 37. Rxb1
{[%clk 0:01:08.5]} 37... Rxb1+ {[%clk 0:01:08]} 38. Kh2 {[%clk 0:01:07.5]} 38...
Rb6 {[%clk 0:01:03.4]} 39. Qxa5 {[%clk 0:01:03.8]} 39... Rcb8 {[%clk 0:01:00.7]}
40. Qe5 {[%clk 0:01:00.9]} 40... Rc8 {[%clk 0:00:54.5]} 41. Qd4 {[%clk 0:00:56]}
41... Rbc6 {[%clk 0:00:52]} 42. Qc3 {[%clk 0:00:55.5]} 42... Kg8 {[%clk
0:00:48.3]} 43. Kg3 {[%clk 0:00:49.6]} 43... Rd6 {[%clk 0:00:42]} 44. Qe5 {[%clk
0:00:47.7]} 44... Rdc6 {[%clk 0:00:33.4]} 45. Qc3 {[%clk 0:00:45.9]} 45... hxg5
{[%clk 0:00:31.9]} 46. hxg5 {[%clk 0:00:44.6]} 46... g6 {[%clk 0:00:30.7]} 47.
f3 {[%clk 0:00:41.8]} 47... Bb7 {[%clk 0:00:27.6]} 48. Qb4 {[%clk 0:00:37.6]}
48... c3 {[%clk 0:00:26.5]} 49. Qxb7 {[%clk 0:00:36.5]} 49... c2 {[%clk
0:00:25.7]} 50. Qb3+ {[%clk 0:00:35.3]} 50... Kh7 {[%clk 0:00:22.6]} 51. Qf7+
{[%clk 0:00:34.3]} 51... Kh8 {[%clk 0:00:20.7]} 52. Qd7 {[%clk 0:00:29.1]} 52...
c1=Q {[%clk 0:00:19.2]} 53. Qh3+ {[%clk 0:00:28.6]} 53... Kg8 {[%clk 0:00:18.4]}
54. Qd7 {[%clk 0:00:28]} 54... Qg1+ {[%clk 0:00:16.4]} 55. Kh3 {[%clk
0:00:27.1]} 55... Qxg5 {[%clk 0:00:12.8]} 56. Qd4 {[%clk 0:00:21.6]} 56... Rc1
{[%clk 0:00:09.4]} 57. Kh2 {[%clk 0:00:19]} 57... R8c2+ {[%clk 0:00:07.8]} 58.
Kh3 {[%clk 0:00:18.3]} 58... Rh1# {[%clk 0:00:06.4]} 0-1

[Event "Live Chess"]
[Site "Chess.com"]
[Date "2023.05.20"]
[Round "-"]
[White "Ocelot32"]
[Black "mightysmasher"]
[Result "0-1"]
[WhiteElo "1398"]
[BlackElo "2131"]
[TimeControl "300"]
[EndTime "11:46:00 PDT"]
[Termination "mightysmasher won by resignation"]

1. e4 {[%clk 0:04:57.9]} 1... e6 {[%clk 0:04:58.9]} 2. Nf3 {[%clk 0:04:56.1]}
2... d5 {[%clk 0:04:58.2]} 3. exd5 {[%clk 0:04:54.5]} 3... exd5 {[%clk
0:04:57.6]} 4. d4 {[%clk 0:04:53.8]} 4... Nf6 {[%clk 0:04:57]} 5. h3 {[%clk
0:04:51.7]} 5... Bd6 {[%clk 0:04:56.2]} 6. Bd3 {[%clk 0:04:50.6]} 6... O-O
{[%clk 0:04:55.7]} 7. O-O {[%clk 0:04:49.7]} 7... Ne4 {[%clk 0:04:55.1]} 8. c4
{[%clk 0:04:42.1]} 8... c6 {[%clk 0:04:53.8]} 9. cxd5 {[%clk 0:04:40.4]} 9...
cxd5 {[%clk 0:04:52.7]} 10. Nc3 {[%clk 0:04:38.3]} 10... Bf5 {[%clk 0:04:49.1]}
11. Bc2 {[%clk 0:04:33.3]} 11... Nc6 {[%clk 0:04:47.6]} 12. Nxe4 {[%clk
0:04:30]} 12... dxe4 {[%clk 0:04:46.3]} 13. Ne5 {[%clk 0:04:16.8]} 13... Nxe5
{[%clk 0:04:42.1]} 14. dxe5 {[%clk 0:04:15.5]} 14... Bxe5 {[%clk 0:04:41.1]} 15.
Qh5 {[%clk 0:04:09.7]} 15... g6 {[%clk 0:04:38.1]} 16. Qg5 {[%clk 0:04:02.6]}
16... Qc7 {[%clk 0:04:36.6]} 17. Be3 {[%clk 0:03:51.8]} 17... Qxc2 {[%clk
0:04:33.4]} 18. Rac1 {[%clk 0:03:50.1]} 18... Qxb2 {[%clk 0:04:31.6]} 19. Rc5
{[%clk 0:03:46.8]} 19... Bf6 {[%clk 0:04:29.5]} 20. Qg3 {[%clk 0:03:44.5]} 20...
Be6 {[%clk 0:04:27.4]} 21. Bh6 {[%clk 0:03:40.8]} 21... Bg7 {[%clk 0:04:25.8]}
22. Bxg7 {[%clk 0:03:36.3]} 22... Qxg7 {[%clk 0:04:24.6]} 23. Rc7 {[%clk
0:03:29]} 23... Rac8 {[%clk 0:04:22.3]} 24. Rxb7 {[%clk 0:03:27.3]} 24... Qd4
{[%clk 0:04:21]} 25. Rfb1 {[%clk 0:03:19.7]} 25... Rc2 {[%clk 0:04:17.8]} 26.
R7b4 {[%clk 0:03:11.1]} 26... Rc1+ {[%clk 0:04:09.8]} 27. Kh2 {[%clk 0:03:05.9]}
27... Qd1 {[%clk 0:04:08.6]} 28. Qb3 {[%clk 0:02:51.3]} 28... Bxb3 {[%clk
0:04:04.7]} 0-1

[Event "Live Chess"]
[Site "Chess.com"]
[Date "2023.05.20"]
[Round "-"]
[White "Yehor20132013"]
[Black "Albul"]
[Result "0-1"]
[WhiteElo "483"]
[BlackElo "2162"]
[TimeControl "300"]
[EndTime "11:46:00 PDT"]
[Termination "Albul won by resignation"]

1. e4 {[%clk 0:04:59.2]} 1... d5 {[%clk 0:04:58.6]} 2. Qf3 {[%clk 0:04:37]} 2...
dxe4 {[%clk 0:04:54.9]} 3. Qxe4 {[%clk 0:04:33]} 3... Nf6 {[%clk 0:04:54.5]} 4.
Qa4+ {[%clk 0:04:27.3]} 4... Bd7 {[%clk 0:04:52.8]} 5. Qb4 {[%clk 0:04:08]} 5...
Bc6 {[%clk 0:04:50.8]} 6. Bb5 {[%clk 0:04:01.4]} 6... Qd7 {[%clk 0:04:42.5]} 7.
c4 {[%clk 0:03:52.8]} 7... e5 {[%clk 0:04:35.9]} 8. Nf3 {[%clk 0:03:44.9]} 8...
Bxb4 {[%clk 0:04:33.2]} 9. Nd4 {[%clk 0:03:38.1]} 9... Qxd4 {[%clk 0:04:26.3]}
10. Bxc6+ {[%clk 0:03:32.5]} 10... Nxc6 {[%clk 0:04:24.8]} 11. O-O {[%clk
0:03:26.9]} 0-1

[Event "Live Chess"]
[Site "Chess.com"]
[Date "2023.05.20"]
[Round "-"]
[White "ClassyChameleon"]
[Black "Ferrarifan27"]
[Result "0-1"]
[WhiteElo "1065"]
[BlackElo "2104"]
[TimeControl "300"]
[EndTime "11:46:02 PDT"]
[Termination "Ferrarifan27 won by resignation"]

1. e4 {[%clk 0:04:59.2]} 1... e5 {[%clk 0:04:56.6]} 2. Nf3 {[%clk 0:04:58.4]}
2... Nc6 {[%clk 0:04:55.9]} 3. c3 {[%clk 0:04:57.5]} 3... d5 {[%clk 0:04:51.3]}
4. d4 {[%clk 0:04:54.2]} 4... dxe4 {[%clk 0:04:48.7]} 5. Nxe5 {[%clk 0:04:53.4]}
5... Nxe5 {[%clk 0:04:46.7]} 6. dxe5 {[%clk 0:04:52.4]} 6... Qxd1+ {[%clk
0:04:39.3]} 7. Kxd1 {[%clk 0:04:52]} 7... Bg4+ {[%clk 0:04:37.5]} 8. Be2 {[%clk
0:04:50.3]} 8... O-O-O+ {[%clk 0:04:33]} 9. Bd2 {[%clk 0:04:48]} 9... Bf5 {[%clk
0:04:23.5]} 10. g4 {[%clk 0:04:36.5]} 10... Bg6 {[%clk 0:04:21.2]} 11. h4 {[%clk
0:04:33.4]} 11... h6 {[%clk 0:04:20]} 12. h5 {[%clk 0:04:32.3]} 12... Bh7 {[%clk
0:04:16.9]} 13. Rh3 {[%clk 0:04:30.5]} 13... Bc5 {[%clk 0:04:15.1]} 14. f3
{[%clk 0:04:27.3]} 14... e3 {[%clk 0:04:13.9]} 15. Bc4 {[%clk 0:04:18.1]} 15...
exd2 {[%clk 0:04:11.4]} 16. Bxf7 {[%clk 0:04:16.3]} 16... Ne7 {[%clk 0:04:03.8]}
17. Nxd2 {[%clk 0:04:08.6]} 17... Be3 {[%clk 0:04:01.1]} 18. Rh2 {[%clk
0:04:03.2]} 18... Rhf8 {[%clk 0:03:58.9]} 19. Be6+ {[%clk 0:04:01]} 19... Kb8
{[%clk 0:03:55.7]} 20. c4 {[%clk 0:03:40.6]} 20... Nc6 {[%clk 0:03:52.4]} 21.
Bd5 {[%clk 0:03:38.1]} 21... Nxe5 {[%clk 0:03:48.3]} 22. Ke2 {[%clk 0:03:32.9]}
22... Bxd2 {[%clk 0:03:46.1]} 23. Rd1 {[%clk 0:03:29.5]} 23... Bf4 {[%clk
0:03:43.5]} 24. Rf2 {[%clk 0:03:24.1]} 24... c6 {[%clk 0:03:42]} 25. Be4 {[%clk
0:03:13.5]} 25... Bxe4 {[%clk 0:03:39.5]} 26. fxe4 {[%clk 0:03:11.4]} 26... Rxd1
{[%clk 0:03:38.2]} 27. Kxd1 {[%clk 0:03:08.6]} 27... Nxg4 {[%clk 0:03:37.3]} 28.
Rg2 {[%clk 0:03:04]} 28... Ne3+ {[%clk 0:03:35.5]} 0-1